fUSD/lending_fUSD_20260202
["ID","MTS","AMOUNT","RATE_DAILY","PERIOD"]
[404313189,1770055101167,-900.0,0.00029668,14]
[404313190,1770055101212,-502.0,0.00029863,12]
[404313191,1770055101244,-116693.69570724,0.0003,5]
[404313192,1770055101277,-334.0,0.0003,120]
[404313193,1770055101307,-250.0,0.0003,32]
[404313194,1770055101339,-7433.70876426,0.0003,120]
[404313195,1770055101369,-8981.17698593,0.0003,7]
[404313196,1770055101400,-3682.23117319,0.0003,7]
[404313197,1770055101430,-151.0,0.0003,7]
[404313198,1770055101461,-187.88,0.0003,22]
[404313199,1770055101491,-244.66,0.000302,30]
[404313200,1770055101522,-163.0,0.00030447,14]
[404313201,1770055101554,-1600.0,0.0003049,14]
[404313202,1770055101586,-500.0,0.0003049,14]
[404313203,1770055101618,-502.0,0.00030699,13]
[404313204,1770055101648,-343.16056384,0.00031,5]
[404313205,1770055101680,-191.65,0.000311,14]
[404313206,1770055101711,-207.0908595,0.00031125,120]
[404313207,1770055101741,-900.0,0.00031312,14]
[404313208,1770055101771,-242.64515336,0.000314,30]
[404313209,1770055101803,-502.0,0.00031534,13]
[404313210,1770055101833,-200.0,0.00032,120]
[404313211,1770055101863,-160.0,0.00032,120]
[404313212,1770055101891,-26367.94660426,0.00032,30]
[404313213,1770055101920,-1600.0,0.00032134,14]
[404313214,1770055101950,-500.0,0.00032134,14]
[404313215,1770055101981,-474.97,0.00032232,30]
[404313216,1770055102011,-502.0,0.0003237,14]
[404313217,1770055102048,-500.0,0.00032877,5]
[404313218,1770055102079,-341.52,0.000329,14]
[404313219,1770055102110,-161.83,0.000329,14]
[404313220,1770055102142,-900.0,0.00032956,14]
[404313221,1770055102172,-641.430849,0.00033,120]
[404313222,1770055102204,-558.386156,0.00033,14]
[404313223,1770055102237,-502.0,0.00033205,15]
[404313224,1770055102269,-1600.0,0.00033778,14]
[404313225,1770055102301,-500.0,0.00033778,14]
[404313226,1770055102332,-200.0,0.00034,120]
[404313227,1770055102363,-502.0,0.00034041,16]
[404313228,1770055102393,-900.0,0.000346,14]
[404313229,1770055102424,-502.0,0.00034877,17]
[404313230,1770055102455,-500.0,0.00034986,5]
[404313231,1770055102488,-151.0,0.00034997,14]
[404313232,1770055102520,-1820.27483294,0.00035,30]
[404313233,1770055102556,-1000.0,0.0003526,5]
[404313234,1770055102587,-1600.0,0.00035422,14]
[404313235,1770055102619,-500.0,0.00035422,14]
[404313236,1770055102655,-1500.0,0.00035534,5]
[404313237,1770055102688,-1999.0,0.00035616,120]
[404313238,1770055102718,-300.0,0.00035616,5]
[404313239,1770055102749,-502.0,0.00035712,17]
[404313240,1770055102780,-2000.0,0.00035808,5]
[404313241,1770055102814,-161.83,0.000359,14]
[404313242,1770055102848,-200.0,0.00036,120]
[404313243,1770055102878,-254.56702594,0.00036082,5]
[404313244,1770055102909,-341.52,0.000361,14]
[404313245,1770055102940,-900.0,0.00036244,14]
[404313246,1770055102970,-600.0,0.00036438,5]
[404313247,1770055103002,-500.0,0.00036489,5]
[404313248,1770055103036,-502.0,0.00036548,18]
[404313249,1770055103071,-647.2892974,0.00036712,120]
[404313250,1770055103115,-310.7441,0.00036888,7]
[404313251,1770055103155,-1600.0,0.00037066,14]
[404313252,1770055103264,-500.0,0.00037066,14]
[404313253,1770055103299,-474.97,0.00037067,120]
[404313254,1770055103332,-900.0,0.0003726,5]
[404313255,1770055103363,-200.0,0.0003735,120]
[404313256,1770055103396,-502.0,0.00037384,19]
[404313257,1770055103428,-900.0,0.00037888,14]
[404313258,1770055103458,-526.0,0.00038,5]
[404313259,1770055103489,-200.0,0.00038,120]
[404313260,1770055103519,-1005.0,0.00038,30]
[404313261,1770055103550,-1200.0,0.00038082,5]
[404313262,1770055103581,-161.83,0.000381,14]
[404313263,1770055103613,-685.24828064,0.000381,33]
[404313264,1770055103646,-502.0,0.00038219,20]
[404313265,1770055103680,-183.0,0.00038356,120]
[404313266,1770055103712,-151.0,0.00038356,120]
[404313267,1770055103743,-151.0,0.00038356,120]
[404313268,1770055103776,-151.0,0.00038356,120]
[404313269,1770055103806,-256.669782,0.00038356,120]
[404313270,1770055103840,-256.669782,0.00038356,120]
[404313271,1770055103872,-256.669782,0.00038356,120]
[404313272,1770055103903,-256.669782,0.00038356,120]
[404313273,1770055103934,-151.0,0.00038356,60]
[404313274,1770055103966,-151.0,0.00038356,30]
[404313275,1770055103996,-151.0,0.00038356,30]
[404313276,1770055104031,-151.0,0.00038356,120]
[404313277,1770055104065,-534.176251,0.00038356,120]
[404313278,1770055104099,-151.0,0.00038356,120]
[404313279,1770055104134,-534.176251,0.00038356,120]
[404313280,1770055104167,-534.176251,0.00038356,120]
[404313281,1770055104201,-534.176251,0.00038356,120]
[404313282,1770055104235,-1241.79,0.00038356,120]
[404313283,1770055104268,-5059.764648,0.00038356,120]
[404313284,1770055104300,-5059.764648,0.00038356,120]
[404313285,1770055104332,-5059.764648,0.00038356,120]
[404313286,1770055104363,-5059.764648,0.00038356,120]
[404313287,1770055104394,-151.0,0.00038356,120]
[404313288,1770055104425,-267.390593,0.00038356,120]
[404313289,1770055104455,-161.067364,0.00038356,120]
[404313290,1770055104487,-163.51772,0.00038356,120]
[404313291,1770055104517,-151.0,0.00038356,10]
[404313292,1770055104548,-287.293193,0.00038356,10]
[404313293,1770055104579,-151.0,0.00038356,120]
[404313294,1770055104611,-212.276597,0.00038356,120]
[404313295,1770055104644,-167.120968,0.00038356,120]
[404313296,1770055104675,-151.0,0.00038356,120]
[404313297,1770055104707,-158.006781,0.00038356,120]
[404313298,1770055104738,-151.0,0.00038356,120]
[404313299,1770055104769,-169.660968,0.00038356,120]
[404313300,1770055104800,-151.0,0.00038356,120]
[404313301,1770055104830,-152.897475,0.00038356,120]
[404313302,1770055104859,-1188.22446,0.00038356,120]
[404313303,1770055104890,-1188.22446,0.00038356,120]
[404313304,1770055104921,-1188.22446,0.00038356,120]
[404313305,1770055104950,-1188.22446,0.00038356,120]
[404313306,1770055104981,-1188.22446,0.00038356,120]
[404313307,1770055105014,-1188.22446,0.00038356,120]
[404313308,1770055105046,-1188.22446,0.00038356,120]
[404313309,1770055105077,-1188.22446,0.00038356,120]
[404313310,1770055105109,-1188.22446,0.00038356,120]
[404313311,1770055105141,-1188.22446,0.00038356,120]
[404313312,1770055105171,-1188.22446,0.00038356,120]
[404313313,1770055105201,-1188.22446,0.00038356,120]
[404313314,1770055105230,-1188.22446,0.00038356,120]
[404313315,1770055105262,-1188.22446,0.00038356,120]
[404313316,1770055105292,-1188.22446,0.00038356,120]
[404313317,1770055105323,-1188.22446,0.00038356,120]
[404313318,1770055105354,-1188.22446,0.00038356,120]
[404313319,1770055105384,-183.871225,0.00038356,120]
[404313320,1770055105414,-183.871225,0.00038356,120]
[404313321,1770055105444,-1188.22446,0.00038356,120]
[404313322,1770055105477,-183.871225,0.00038356,120]
[404313323,1770055105514,-151.0,0.00038356,120]
[404313324,1770055105546,-1188.22446,0.00038356,120]
[404313325,1770055105576,-183.871225,0.00038356,120]
[404313326,1770055105606,-151.0,0.00038356,120]
[404313327,1770055105637,-1188.224464,0.00038356,120]
[404313328,1770055105667,-183.871225,0.00038356,120]
[404313329,1770055105698,-183.871225,0.00038356,120]
[404313330,1770055105731,-183.871225,0.00038356,120]
[404313331,1770055105761,-183.871225,0.00038356,120]
[404313332,1770055105792,-183.871225,0.00038356,120]
[404313333,1770055105823,-183.871225,0.00038356,120]
[404313334,1770055105855,-183.871225,0.00038356,120]
[404313335,1770055105888,-183.871225,0.00038356,120]
[404313336,1770055105920,-183.871225,0.00038356,120]
[404313337,1770055105953,-183.871225,0.00038356,120]
[404313338,1770055105990,-183.871225,0.00038356,120]
[404313339,1770055106021,-183.871225,0.00038356,120]
[404313340,1770055106052,-183.871225,0.00038356,120]
[404313341,1770055106082,-183.871225,0.00038356,120]
[404313342,1770055106114,-183.871225,0.00038356,120]
[404313343,1770055106144,-183.871221,0.00038356,120]
[404313344,1770055106177,-151.0,0.00038356,120]
[404313345,1770055106207,-225.384834,0.00038356,120]
[404313346,1770055106237,-151.0,0.00038356,60]
[404313347,1770055106268,-151.0,0.00038356,120]
[404313348,1770055106298,-172.516382,0.00038356,120]
[404313349,1770055106487,-226.240302,0.00038356,120]
[404313350,1770055106523,-235.411417,0.00038356,120]
[404313351,1770055106556,-151.0,0.00038356,120]
[404313352,1770055106590,-158.423911,0.00038356,120]
[404313353,1770055106623,-201.325273,0.00038356,120]
[404313354,1770055106657,-154.163661,0.00038356,120]
[404313355,1770055106689,-151.0,0.00038356,30]
[404313356,1770055106721,-173.35677,0.00038356,30]
[404313357,1770055106752,-151.0,0.00038356,20]
[404313358,1770055106784,-191.655324,0.00038356,20]
[404313359,1770055106816,-158.5947,0.00038356,120]
[404313360,1770055106848,-158.5947,0.00038356,120]
[404313361,1770055106880,-158.5947,0.00038356,120]
[404313362,1770055106911,-158.5947,0.00038356,120]
[404313363,1770055106946,-158.5947,0.00038356,120]
[404313364,1770055106978,-158.5947,0.00038356,120]
[404313365,1770055107011,-158.5947,0.00038356,120]
[404313366,1770055107044,-158.5947,0.00038356,120]
[404313367,1770055107075,-151.0,0.00038356,120]
[404313368,1770055107106,-151.0,0.00038356,120]
[404313369,1770055107139,-151.0,0.00038356,120]
[404313370,1770055107170,-151.0,0.00038356,120]
[404313371,1770055107201,-151.0,0.00038356,120]
[404313372,1770055107233,-151.0,0.00038356,120]
[404313373,1770055107265,-151.0,0.00038356,120]
[404313374,1770055107296,-151.0,0.00038356,120]
[404313375,1770055107326,-151.0,0.00038356,120]
[404313376,1770055107356,-151.0,0.00038356,120]
[404313377,1770055107387,-151.0,0.00038356,120]
[404313378,1770055107417,-180.468552,0.00038356,120]
[404313379,1770055107447,-157.079604,0.00038356,120]
[404313380,1770055107479,-157.079604,0.00038356,120]
[404313381,1770055107512,-157.079604,0.00038356,120]
[404313382,1770055107542,-157.079604,0.00038356,120]
[404313383,1770055107575,-157.079604,0.00038356,120]
[404313384,1770055107604,-157.079604,0.00038356,120]
[404313385,1770055107635,-157.079604,0.00038356,120]
[404313386,1770055107667,-157.079604,0.00038356,120]
[404313387,1770055107698,-157.079604,0.00038356,120]
[404313388,1770055107729,-157.079604,0.00038356,120]
[404313389,1770055107765,-157.079604,0.00038356,120]
[404313390,1770055107798,-157.079604,0.00038356,120]
[404313391,1770055107830,-151.0,0.00038356,120]
[404313392,1770055107862,-151.0,0.00038356,120]
[404313393,1770055107893,-151.0,0.00038356,120]
[404313394,1770055107924,-151.0,0.00038356,120]
[404313395,1770055107954,-151.0,0.00038356,120]
[404313396,1770055107985,-183.309703,0.00038356,120]
[404313397,1770055108016,-151.0,0.00038356,120]
[404313398,1770055108048,-258.452052,0.00038356,120]
[404313399,1770055108081,-151.0,0.00038356,120]
[404313400,1770055108112,-184.791923,0.00038356,120]
[404313401,1770055108144,-255.859013,0.00038356,120]
[404313402,1770055108176,-151.000049,0.00038356,120]
[404313403,1770055108207,-151.0,0.00038356,120]
[404313404,1770055108237,-167.07606,0.00038356,120]
[404313405,1770055108271,-169.377814,0.00038356,120]
[404313406,1770055108302,-151.0,0.00038356,120]
[404313407,1770055108333,-151.0,0.00038356,120]
[404313408,1770055108364,-156.60205,0.00038356,120]
[404313409,1770055108401,-456.641554,0.00038356,120]
[404313410,1770055108436,-456.641554,0.00038356,120]
[404313411,1770055108481,-456.641554,0.00038356,120]
[404313412,1770055108526,-456.641554,0.00038356,120]
[404313413,1770055108568,-151.0,0.00038356,120]
[404313414,1770055108610,-456.641554,0.00038356,120]
[404313415,1770055108651,-151.0,0.00038356,120]
[404313416,1770055108693,-151.0,0.00038356,120]
[404313417,1770055108734,-456.641554,0.00038356,120]
[404313418,1770055108775,-151.0,0.00038356,120]
[404313419,1770055108816,-151.0,0.00038356,120]
[404313420,1770055108856,-151.0,0.00038356,120]
[404313421,1770055108896,-456.641554,0.00038356,120]
[404313422,1770055108938,-151.0,0.00038356,120]
[404313423,1770055108982,-456.641554,0.00038356,120]
[404313424,1770055109025,-151.0,0.00038356,120]
[404313425,1770055109068,-456.641554,0.00038356,120]
[404313426,1770055109109,-151.0,0.00038356,120]
[404313427,1770055109153,-456.641554,0.00038356,120]
[404313428,1770055109197,-456.641554,0.00038356,120]
[404313429,1770055109240,-456.641554,0.00038356,120]
[404313430,1770055109535,-151.0,0.00038356,120]
[404313431,1770055109580,-177.739286,0.00038356,120]
[404313432,1770055109621,-155.391297,0.00038356,120]
[404313433,1770055109663,-151.0,0.00038356,120]
[404313434,1770055109706,-151.0,0.00038356,120]
[404313435,1770055109747,-151.0,0.00038356,120]
[404313436,1770055109786,-202.507953,0.00038356,120]
[404313437,1770055109826,-151.0,0.00038356,120]
[404313438,1770055109867,-151.0,0.00038356,120]
[404313439,1770055109908,-151.0,0.00038356,120]
[404313440,1770055109948,-151.0,0.00038356,120]
[404313441,1770055109987,-151.0,0.00038356,120]
[404313442,1770055110028,-213.672786,0.00038356,120]
[404313443,1770055110070,-151.0,0.00038356,120]
[404313444,1770055110118,-151.0,0.00038356,120]
[404313445,1770055110164,-151.0,0.00038356,120]
[404313446,1770055110210,-151.0,0.00038356,120]
[404313447,1770055110252,-151.0,0.00038356,120]
[404313448,1770055110295,-193.218946,0.00038356,120]
[404313449,1770055110335,-151.0,0.00038356,120]
[404313450,1770055110376,-151.0,0.00038356,120]
[404313451,1770055110415,-151.0,0.00038356,120]
[404313452,1770055110460,-151.0,0.00038356,120]
[404313453,1770055110507,-151.0,0.00038356,120]
[404313454,1770055110556,-151.0,0.00038356,120]
[404313455,1770055110599,-242.869132,0.00038356,120]
[404313456,1770055110644,-151.0,0.00038356,120]
[404313457,1770055110687,-151.0,0.00038356,120]
[404313458,1770055110728,-151.000027,0.00038356,120]
[404313459,1770055110772,-181.408787,0.00038356,120]
[404313460,1770055110817,-181.408787,0.00038356,120]
[404313461,1770055110863,-256.604861,0.00038356,120]
[404313462,1770055110908,-181.408787,0.00038356,120]
[404313463,1770055110950,-256.604861,0.00038356,120]
[404313464,1770055110992,-256.604861,0.00038356,120]
[404313465,1770055111034,-181.408787,0.00038356,120]
[404313466,1770055111078,-181.408787,0.00038356,120]
[404313467,1770055111121,-256.604861,0.00038356,120]
[404313468,1770055111164,-181.408787,0.00038356,120]
[404313469,1770055111207,-256.604861,0.00038356,120]
[404313470,1770055111247,-256.604861,0.00038356,120]
[404313471,1770055111285,-181.408787,0.00038356,120]
[404313472,1770055111324,-181.408787,0.00038356,120]
[404313473,1770055111362,-256.604861,0.00038356,120]
[404313474,1770055111398,-181.408787,0.00038356,120]
[404313475,1770055111435,-256.604861,0.00038356,120]
[404313476,1770055111472,-256.604861,0.00038356,120]
[404313477,1770055111512,-181.408787,0.00038356,120]
[404313478,1770055111549,-181.408787,0.00038356,120]
[404313479,1770055111589,-256.604861,0.00038356,120]
[404313480,1770055111627,-181.408787,0.00038356,120]
[404313481,1770055111664,-256.604861,0.00038356,120]
[404313482,1770055111704,-256.604861,0.00038356,120]
[404313483,1770055111743,-151.0,0.00038356,120]
[404313484,1770055111783,-151.0,0.00038356,120]
[404313485,1770055111821,-151.0,0.00038356,120]
[404313486,1770055111856,-215.356354,0.00038356,120]
[404313487,1770055111890,-215.356354,0.00038356,120]
[404313488,1770055111926,-215.356354,0.00038356,120]
[404313489,1770055111962,-215.356354,0.00038356,120]
[404313490,1770055111998,-215.356354,0.00038356,120]
[404313491,1770055112035,-215.356354,0.00038356,120]
[404313492,1770055112070,-215.356354,0.00038356,120]
[404313493,1770055112106,-215.356354,0.00038356,120]
[404313494,1770055112143,-215.356354,0.00038356,120]
[404313495,1770055112181,-151.0,0.00038356,120]
[404313496,1770055112257,-151.0,0.00038356,120]
[404313497,1770055112296,-215.356354,0.00038356,120]
[404313498,1770055112330,-151.0,0.00038356,120]
[404313499,1770055112366,-215.356354,0.00038356,120]
[404313500,1770055112402,-215.356354,0.00038356,120]
[404313501,1770055112437,-151.0,0.00038356,120]
[404313502,1770055112471,-151.0,0.00038356,120]
[404313503,1770055112508,-151.0,0.00038356,120]
[404313504,1770055112541,-151.0,0.00038356,90]
[404313505,1770055112579,-151.0,0.00038356,120]
[404313506,1770055112614,-151.0,0.00038356,90]
[404313507,1770055112650,-151.0,0.00038356,120]
[404313508,1770055112690,-151.0,0.00038356,90]
[404313509,1770055112730,-151.0,0.00038356,120]
[404313510,1770055112768,-166.044511,0.00038356,120]
[404313511,1770055112803,-198.575761,0.00038356,120]
[404313512,1770055112838,-198.575761,0.00038356,120]
[404313513,1770055112875,-198.575761,0.00038356,120]
[404313514,1770055112915,-198.575761,0.00038356,120]
[404313515,1770055112963,-198.575761,0.00038356,120]
[404313516,1770055113002,-198.575761,0.00038356,120]
[404313517,1770055113040,-198.575761,0.00038356,120]
[404313518,1770055113078,-198.575761,0.00038356,120]
[404313519,1770055113117,-198.575761,0.00038356,120]
[404313520,1770055113167,-151.0,0.00038356,120]
[404313521,1770055113217,-198.575761,0.00038356,120]
[404313522,1770055113261,-151.0,0.00038356,120]
[404313523,1770055113307,-198.575761,0.00038356,120]
[404313524,1770055113348,-198.575761,0.00038356,120]
[404313525,1770055113389,-1080.100876,0.00038356,120]
[404313526,1770055113430,-1080.100876,0.00038356,120]
[404313527,1770055113471,-174.060433,0.00038356,120]
[404313528,1770055113518,-1080.100876,0.00038356,120]
[404313529,1770055113563,-1080.100876,0.00038356,120]
[404313530,1770055113606,-1080.100876,0.00038356,120]
[404313531,1770055113651,-1080.100876,0.00038356,120]
[404313532,1770055113690,-1080.100876,0.00038356,120]
[404313533,1770055113727,-1080.100876,0.00038356,120]
[404313534,1770055113765,-1080.100876,0.00038356,120]
[404313535,1770055113806,-1080.100876,0.00038356,120]
[404313536,1770055113844,-1080.100876,0.00038356,120]
[404313537,1770055113886,-1080.100876,0.00038356,120]
[404313538,1770055113928,-225.368572,0.00038356,120]
[404313539,1770055113968,-151.0,0.00038356,120]
[404313540,1770055114007,-151.0,0.00038356,120]
[404313541,1770055114045,-178.763365,0.00038356,120]
[404313542,1770055114083,-151.0,0.00038356,120]
[404313543,1770055114121,-151.0,0.00038356,120]
[404313544,1770055114160,-189.7163,0.00038356,120]
[404313545,1770055114199,-151.0,0.00038356,120]
[404313546,1770055114245,-151.0,0.00038356,120]
[404313547,1770055114301,-151.0,0.00038356,120]
[404313548,1770055114342,-151.0,0.00038356,120]
[404313549,1770055114383,-227.04968,0.00038356,120]
[404313550,1770055114427,-151.0,0.00038356,120]
[404313551,1770055114470,-151.0,0.00038356,120]
[404313552,1770055114515,-151.0,0.00038356,120]
[404313553,1770055114558,-151.0,0.00038356,120]
[404313554,1770055114597,-151.0,0.00038356,120]
[404313555,1770055114643,-151.0,0.00038356,120]
[404313556,1770055114697,-151.0,0.00038356,120]
[404313557,1770055114739,-151.0,0.00038356,120]
[404313558,1770055114784,-151.0,0.00038356,120]
[404313559,1770055114822,-151.0,0.00038356,120]
[404313560,1770055114863,-151.0,0.00038356,120]
[404313561,1770055114903,-179.54689,0.00038356,120]
[404313562,1770055114944,-151.0,0.00038356,120]
[404313563,1770055114984,-151.0,0.00038356,120]
[404313564,1770055115028,-151.0,0.00038356,120]
[404313565,1770055115073,-151.0,0.00038356,120]
[404313566,1770055115116,-199.864043,0.00038356,120]
[404313567,1770055115161,-151.0,0.00038356,120]
[404313568,1770055115203,-151.0,0.00038356,120]
[404313569,1770055115245,-219.595089,0.00038356,120]
[404313570,1770055115284,-151.0,0.00038356,120]
[404313571,1770055115325,-151.0,0.00038356,120]
[404313572,1770055115363,-151.0,0.00038356,120]
[404313573,1770055115400,-151.0,0.00038356,120]
[404313574,1770055115437,-151.0,0.00038356,120]
[404313575,1770055115472,-151.0,0.00038356,120]
[404313576,1770055115510,-151.0,0.00038356,120]
[404313577,1770055115546,-151.0,0.00038356,120]
[404313578,1770055115586,-227.777128,0.00038356,120]
[404313579,1770055115626,-173.582482,0.00038356,120]
[404313580,1770055115669,-151.0,0.00038356,120]
[404313581,1770055115712,-151.0,0.00038356,120]
[404313582,1770055115756,-239.700332,0.00038356,120]
[404313583,1770055115797,-151.0,0.00038356,120]
[404313584,1770055115836,-151.0,0.00038356,120]
[404313585,1770055115876,-151.0,0.00038356,120]
[404313586,1770055115921,-151.0,0.00038356,120]
[404313587,1770055115963,-151.0,0.00038356,120]
[404313588,1770055116007,-151.0,0.00038356,120]
[404313589,1770055116050,-151.0,0.00038356,120]
[404313590,1770055116092,-151.0,0.00038356,120]
[404313591,1770055116135,-151.0,0.00038356,120]
[404313592,1770055116296,-240.804154,0.00038356,120]
[404313593,1770055116344,-151.0,0.00038356,120]
[404313594,1770055116387,-151.0,0.00038356,120]
[404313595,1770055116429,-151.0,0.00038356,120]
[404313596,1770055116472,-151.0,0.00038356,120]
[404313597,1770055116520,-151.0,0.00038356,120]
[404313598,1770055116564,-151.0,0.00038356,120]
[404313599,1770055116610,-151.0,0.00038356,120]
[404313600,1770055116655,-151.0,0.00038356,120]
[404313601,1770055116698,-151.0,0.00038356,120]
[404313602,1770055116741,-151.0,0.00038356,120]
[404313603,1770055116792,-151.0,0.00038356,120]
[404313604,1770055116839,-151.0,0.00038356,120]
[404313605,1770055116895,-151.0,0.00038356,120]
[404313606,1770055116943,-151.0,0.00038356,120]
[404313607,1770055116991,-198.031669,0.00038356,120]
[404313608,1770055117038,-264.218956,0.00038356,120]
[404313609,1770055117083,-151.0,0.00038356,120]
[404313610,1770055117128,-151.0,0.00038356,120]
[404313611,1770055117173,-151.0,0.00038356,120]
[404313612,1770055117213,-151.0,0.00038356,120]
[404313613,1770055117253,-151.0,0.00038356,120]
[404313614,1770055117295,-151.0,0.00038356,120]
[404313615,1770055117337,-1714.437687,0.00038356,120]
[404313616,1770055117379,-151.0,0.00038356,120]
[404313617,1770055117420,-151.0,0.00038356,120]
[404313618,1770055117464,-151.0,0.00038356,120]
[404313619,1770055117506,-198.061031,0.00038356,120]
[404313620,1770055117549,-1714.437687,0.00038356,120]
[404313621,1770055117594,-151.0,0.00038356,120]
[404313622,1770055117636,-1771.249703,0.00038356,120]
[404313623,1770055117680,-1771.249703,0.00038356,120]
[404313624,1770055117722,-211.764714,0.00038356,120]
[404313625,1770055117762,-1771.249703,0.00038356,120]
[404313626,1770055117802,-1771.249703,0.00038356,120]
[404313627,1770055117841,-1771.249703,0.00038356,120]
[404313628,1770055117882,-2526.276559,0.00038356,120]
[404313629,1770055117923,-1771.249703,0.00038356,120]
[404313630,1770055117963,-1714.437687,0.00038356,120]
[404313631,1770055118005,-2526.276559,0.00038356,120]
[404313632,1770055118047,-2526.276559,0.00038356,120]
[404313633,1770055118088,-1771.249703,0.00038356,120]
[404313634,1770055118132,-248.130262,0.00038356,120]
[404313635,1770055118174,-1771.249703,0.00038356,120]
[404313636,1770055118218,-1771.249703,0.00038356,120]
[404313637,1770055118263,-2526.276559,0.00038356,120]
[404313638,1770055118307,-2526.276559,0.00038356,120]
[404313639,1770055118350,-1714.437687,0.00038356,120]
[404313640,1770055118391,-2526.276559,0.00038356,120]
[404313641,1770055118433,-1714.437687,0.00038356,120]
[404313642,1770055118472,-1771.249703,0.00038356,120]
[404313643,1770055118521,-1714.437687,0.00038356,120]
[404313644,1770055118564,-1771.249703,0.00038356,120]
[404313645,1770055118603,-1771.249703,0.00038356,120]
[404313646,1770055118643,-2526.276559,0.00038356,120]
[404313647,1770055118685,-1714.437687,0.00038356,120]
[404313648,1770055118724,-2526.276559,0.00038356,120]
[404313649,1770055118772,-1714.437687,0.00038356,120]
[404313650,1770055118817,-2526.276559,0.00038356,120]
[404313651,1770055118858,-1714.437687,0.00038356,120]
[404313652,1770055118898,-1714.437687,0.00038356,120]
[404313654,1770055118945,-2526.276559,0.00038356,120]
[404313655,1770055118987,-1714.437687,0.00038356,120]
[404313656,1770055119033,-2526.276559,0.00038356,120]
[404313657,1770055119077,-1714.437687,0.00038356,120]
[404313658,1770055119121,-2526.276559,0.00038356,120]
[404313659,1770055119169,-151.0,0.00038356,120]
[404313660,1770055119214,-151.0,0.00038356,120]
[404313661,1770055119259,-151.0,0.00038356,120]
[404313662,1770055119303,-151.0,0.00038356,120]
[404313663,1770055119344,-151.0,0.00038356,120]
[404313664,1770055119385,-151.0,0.00038356,120]
[404313665,1770055119427,-151.0,0.00038356,120]
[404313666,1770055119466,-151.0,0.00038356,120]
[404313667,1770055119506,-1000.0,0.00038356,5]
[404313668,1770055119555,-150.0,0.0003861,30]
[404313669,1770055119594,-1600.0,0.0003871,14]
[404313670,1770055119633,-500.0,0.0003871,14]
[404313671,1770055119674,-1004.42765811,0.00038767,5]
[404313672,1770055119718,-2796.6976,0.00038888,30]
[404313673,1770055119761,-163.19032169,0.000389,30]
[404313674,1770055119807,-1500.0,0.00038904,5]
[404313675,1770055119850,-341.52,0.00039,14]
[404313676,1770055119894,-269.01,0.00039,120]
[404313677,1770055120239,-109888.26667863,0.00039,120]
[404313678,1770055120306,-1046.0,0.00039,30]
[404313679,1770055120352,-2930.0,0.00039,30]
[404313680,1770055120396,-77330.82757371,0.00039,120]
[404313681,1770055120444,-150.0,0.00039037,7]
[404313682,1770055120490,-150.0,0.00039037,7]
[404313683,1770055120532,-196.59131082,0.00039037,7]
[404313684,1770055120574,-5310.025461,0.00039041,120]
[404313685,1770055120613,-5310.025461,0.00039041,120]
[404313686,1770055120654,-5310.025461,0.00039041,120]
[404313687,1770055120695,-5310.025461,0.00039041,120]
[404313688,1770055120738,-5310.025461,0.00039041,120]
[404313689,1770055120781,-5310.025461,0.00039041,120]